Workbook

Sheet Reshelving Report
A1: LEE LIBRARY RESHELVING REPORT 2011/12 BY CALL NUMBER AND COLLECTION
Q2: Circulating
A3: Description | B3: Call Number | C3: Budget | D3: 2011 | H3: 2012 | P3: Total | Q3: Inventory | R3: Reshelving
D4: Sept | E4: Oct | F4: Nov | G4: Dec | H4: Jan | I4: Feb | J4: Mar | K4: Apr | L4: May | M4: Jun | N4: Jul | O4: Aug | Q4: 2011-09-01 | R4: Rate
A5: GENERAL STACKS
A6: Collections, Encyclopedias, Dictionaries, Indexes, Etc | B6: AC-AL | C6: 34101 | D6: 8 | E6: 23 | F6: 17 | G6: 17 | H6: 3 | I6: 4 | P6: =SUM(D6:O6) -> 72 | Q6: 5644 | R6: =(P6/Q6) -> 0.01275690999
A7: Museums, Collectors and Collecting | B7: AM | C7: 34217 | D7: 0 | E7: 4 | F7: 0 | G7: 1 | H7: 2 | I7: 2 | P7: =SUM(D7:O7) -> 9 | Q7: 688 | R7: =(P7/Q7) -> 0.01308139535
A8: Newspapers, Periodicals, Societies, Yearbooks, Est | B8: AN-AZ | C8: 34101 | D8: 32 | E8: 27 | F8: 14 | G8: 6 | H8: 33 | I8: 11 | P8: 123 | Q8: 3940 | R8: 0.03121827411
A9: Philosophy: Periodicals, Societies, Con | B9: B1-B68 | C9: 34105 | D9: 3 | E9: 1 | F9: 2 | G9: 1 | H9: 0 | I9: 0 | P9: 7 | Q9: 1535 | R9: 0.004560260586
A10: Philosophy: History and Systems | B10: B69-B9999 | C10: 34105 | D10: 39 | E10: 79 | F10: 122 | G10: 74 | H10: 67 | I10: 77 | P10: 458 | Q10: 20295 | R10: 0.02256713476
A11: Logic | B11: BC | C11: 34105 | D11: 5 | E11: 6 | F11: 3 | G11: 5 | H11: 4 | I11: 0 | P11: 23 | Q11: 1250 | R11: 0.0184
A12: Speculative Philosophy | B12: BD | C12: 34105 | D12: 7 | E12: 7 | F12: 8 | G12: 4 | H12: 10 | I12: 6 | P12: 42 | Q12: 3674 | R12: 0.01143168209
A13: Psychology | B13: BF1-BF1000 | C13: 34110 | D13: 110 | E13: 98 | F13: 95 | G13: 69 | H13: 100 | I13: 83 | P13: 555 | Q13: 19033 | R13: 0.02915988021
A14: Parapsychology, Occult Sciences | B14: BF1001-BF9999 | C14: 34110 | D14: 2 | E14: 27 | F14: 24 | G14: 5 | H14: 27 | I14: 6 | P14: 91 | Q14: 3136 | R14: 0.02901785714
A15: Aesthetics | B15: BH | C15: 34105 | D15: 1 | E15: 2 | F15: 9 | G15: 8 | H15: 5 | I15: 24 | P15: 49 | Q15: 1038 | R15: 0.0472061657
A16: Ethics, Social Usages, Etiquette | B16: BJ | C16: 34105 | D16: 8 | E16: 29 | F16: 15 | G16: 2 | H16: 11 | I16: 10 | P16: 75 | Q16: 4757 | R16: 0.01576623923
A17: Religions. Mythology. Rationalism | B17: BL | C17: 34107 | D17: 117 | E17: 135 | F17: 169 | G17: 110 | H17: 65 | I17: 72 | P17: 668 | Q17: 13559 | R17: 0.04926617007
A18: Judaism | B18: BM | C18: 34136 | D18: 98 | E18: 44 | F18: 35 | G18: 19 | H18: 23 | I18: 39 | P18: 258 | Q18: 5892 | R18: 0.04378818737
A19: Islam. Bahaism. Theosophy, etc. | B19: BP | C19: 34136 | D19: 52 | E19: 36 | F19: 101 | G19: 12 | H19: 23 | I19: 44 | P19: 268 | Q19: 3329 | R19: 0.08050465605
A20: Buddhism | B20: BQ | C20: 34135 | D20: 9 | E20: 23 | F20: 5 | G20: 2 | H20: 2 | I20: 3 | P20: 44 | Q20: 1127 | R20: 0.03904170364
A21: Christianity (General) | B21: BR | C21: 34107 | D21: 69 | E21: 83 | F21: 88 | G21: 26 | H21: 24 | I21: 40 | P21: 330 | Q21: 14863 | R21: 0.02220278544
A22: Bible | B22: BS | C22: 34107 | D22: 245 | E22: 103 | F22: 164 | G22: 63 | H22: 103 | I22: 128 | P22: 806 | Q22: 19766 | R22: 0.04077709198
A23: Doctrinal Theology | B23: BT | C23: 34107 | D23: 29 | E23: 27 | F23: 102 | G23: 12 | H23: 24 | I23: 63 | P23: 257 | Q23: 10132 | R23: 0.02536517963
A24: Practical Theology | B24: BV | C24: 34107 | D24: 7 | E24: 10 | F24: 45 | G24: 10 | H24: 11 | I24: 29 | P24: 112 | Q24: 9714 | R24: 0.01152975088
A25: Eastern Christian Churches | B25: BX1-BX799 | C25: 34107 | D25: 4 | E25: 9 | F25: 0 | G25: 2 | H25: 5 | I25: 5 | P25: 25 | Q25: 953 | R25: 0.02623294858
A26: Roman Catholic Churches | B26: BX800-BX4799 | C26: 34107 | D26: 29 | E26: 30 | F26: 59 | G26: 29 | H26: 14 | I26: 20 | P26: 181 | Q26: 10226 | R26: 0.01769998044
A27: Protestantism | B27: BX4800-BX8599 | C27: 34107 | D27: 12 | E27: 15 | F27: 16 | G27: 17 | H27: 28 | I27: 5 | P27: 93 | Q27: 8187 | R27: 0.01135947233
A28: Mormonism-General, Natural Theology | B28: BX8600-BX8619 | C28: 34103 | D28: 43 | E28: 24 | F28: 25 | G28: 14 | H28: 19 | I28: 29 | P28: 154 | Q28: 1067 | R28: 0.1443298969
A29: Mormonism-Scriptures | B29: BX8620-BX8629 | C29: 34103 | D29: 130 | E29: 148 | F29: 212 | G29: 70 | H29: 103 | I29: 92 | P29: 755 | Q29: 3188 | R29: 0.236825596
A30: Mormonism-Doctrinal Theology | B30: BX8630-BX8639 | C30: 34103 | D30: 168 | E30: 116 | F30: 279 | G30: 142 | H30: 79 | I30: 91 | P30: 875 | Q30: 3125 | R30: 0.28
A31: Mormonism-Practical Theology | B31: BX8640-BX8649 | C31: 34103 | D31: 99 | E31: 89 | F31: 162 | G31: 114 | H31: 75 | I31: 61 | P31: 600 | Q31: 5224 | R31: 0.1148545176
A32: Mormonism-Ecclesiastical Theology | B32: BX8650-BX8659 | C32: 34103 | D32: 14 | E32: 11 | F32: 24 | G32: 8 | H32: 13 | I32: 9 | P32: 79 | Q32: 870 | R32: 0.0908045977
A33: Mormonism-Religious Education | B33: BX8660-BX8669 | C33: 34103 | D33: 6 | E33: 1 | F33: 5 | G33: 7 | H33: 10 | I33: 0 | P33: 29 | Q33: 277 | R33: 0.1046931408
A34: Mormonism-Biography & History | B34: BX8670-BX8679 | C34: 34103 | D34: 177 | E34: 104 | F34: 226 | G34: 83 | H34: 99 | I34: 177 | P34: 866 | Q34: 5060 | R34: 0.1711462451
A35: Mormonism-Fine Arts & Fiction | B35: BX8680-BX8689 | C35: 34103 | D35: 60 | E35: 34 | F35: 61 | G35: 36 | H35: 79 | I35: 43 | P35: 313 | Q35: 3985 | R35: 0.07854454203
A36: Mormonims-Church Schisms | B36: BX8690-BX8699 | C36: 34103 | D36: 6 | E36: 4 | F36: 3 | G36: 1 | H36: 1 | I36: 9 | P36: 24 | Q36: 329 | R36: 0.07294832827
A37: Protestantism | B37: BX8700-BX9999 | C37: 34103 | D37: 1 | E37: 15 | F37: 6 | G37: 0 | H37: 17 | I37: 9 | P37: 48 | Q37: 2586 | R37: 0.01856148492
A38: Aux.Sciences of History: General, Hist. of Civilization | B38: C-CB | C38: 34127 | D38: 10 | E38: 7 | F38: 11 | G38: 21 | H38: 10 | I38: 7 | P38: 66 | Q38: 3865 | R38: 0.017076326
A39: Archaeology (General) | B39: CC | C39: 34152 | D39: 9 | E39: 1 | F39: 15 | G39: 2 | H39: 2 | I39: 6 | P39: 35 | Q39: 1513 | R39: 0.02313284865
A40: Diplomatics. Archives. Seals, Chronology | B40: CD-CE | C40: 34127 | D40: 0 | E40: 1 | F40: 1 | G40: 0 | H40: 0 | I40: 1 | P40: 3 | Q40: 1702 | R40: 0.001762632197
A41: Numismatics | B41: CJ | C41: 34101 | D41: 0 | E41: 4 | F41: 4 | G41: 5 | H41: 3 | I41: 6 | P41: 22 | Q41: 888 | R41: 0.02477477477
A42: Epigraphy | B42: CN | C42: 34126 | D42: 0 | E42: 0 | F42: 0 | G42: 0 | H42: 0 | I42: 1 | P42: 1 | Q42: 325 | R42: 0.003076923077
A43: Heraldry, Genealogy | B43: CR-CS | C43: 34142 | D43: 26 | E43: 26 | F43: 43 | G43: 16 | H43: 10 | I43: 34 | P43: 155 | Q43: 8214 | R43: 0.01887022157
A44: Biography | B44: CT | C44: 34128 | D44: 1 | E44: 6 | F44: 6 | G44: 7 | H44: 3 | I44: 3 | P44: 26 | Q44: 4383 | R44: 0.005932010039
A45: History (General) | B45: D1-D899 | C45: 34127 | D45: 86 | E45: 86 | F45: 166 | G45: 96 | H45: 83 | I45: 107 | P45: 624 | Q45: 27493 | R45: 0.02269668643
A46: History of Europe, General | B46: D900-D2009 | C46: 34131 | D46: 3 | E46: 0 | F46: 0 | G46: 0 | H46: 1 | I46: 1 | P46: 5 | Q46: 1442 | R46: 0.00346740638
A47: History: Great Britain | B47: DA | C47: 34130 | D47: 40 | E47: 59 | F47: 69 | G47: 55 | H47: 89 | I47: 69 | P47: 381 | Q47: 19571 | R47: 0.01946757958
A48: History: Central Europe | B48: DAW | C48: 34131 | D48: 0 | E48: 0 | F48: 0 | G48: 0 | H48: 0 | I48: 0 | P48: 0 | Q48: 58 | R48: 0
A49: History: Austria, Austro-Hungarian Empire | B49: DB | C49: 34131 | D49: 16 | E49: 9 | F49: 11 | G49: 1 | H49: 2 | I49: 0 | P49: 39 | Q49: 6457 | R49: 0.006039956636
A50: History: France | B50: DC | C50: 34132 | D50: 102 | E50: 30 | F50: 44 | G50: 38 | H50: 23 | I50: 60 | P50: 297 | Q50: 15615 | R50: 0.01902017291
A51: History: Germany | B51: DD | C51: 34131 | D51: 61 | E51: 36 | F51: 60 | G51: 16 | H51: 32 | I51: 12 | P51: 217 | Q51: 17607 | R51: 0.01232464361
A52: History: Mediterranean Region, Greco-Roman | B52: DE | C52: 34126 | D52: 1 | E52: 4 | F52: 1 | G52: 4 | H52: 1 | I52: 1 | P52: 12 | Q52: 507 | R52: 0.02366863905
A53: History: Greece | B53: DF | C53: 34131 | D53: 9 | E53: 17 | F53: 31 | G53: 8 | H53: 9 | I53: 16 | P53: 90 | Q53: 3143 | R53: 0.02863506204
A54: History: Italy | B54: DG | C54: 34132 | D54: 40 | E54: 28 | F54: 44 | G54: 12 | H54: 23 | I54: 13 | P54: 160 | Q54: 8033 | R54: 0.01991783891
A55: History: Netherlands | B55: DH-DJ | C55: 34131 | D55: 1 | E55: 1 | F55: 6 | G55: 1 | H55: 4 | I55: 0 | P55: 13 | Q55: 2253 | R55: 0.005770084332
A56: History: Eastern Europe | B56: DJK | C56: 34133 | D56: 1 | E56: 2 | F56: 2 | G56: 1 | H56: 4 | I56: 1 | P56: 11 | Q56: 526 | R56: 0.02091254753
A57: History: Russia, U.S.S.R. | B57: DK | C57: 34133 | D57: 22 | E57: 21 | F57: 44 | G57: 15 | H57: 31 | I57: 21 | P57: 154 | Q57: 10841 | R57: 0.01420533161
A58: History: Northern Europe, Scandinavia | B58: DL | C58: 34131 | D58: 8 | E58: 11 | F58: 7 | G58: 3 | H58: 18 | I58: 7 | P58: 54 | Q58: 2002 | R58: 0.02697302697
A59: History: Spain | B59: DP1-DP500 | C59: 34134 | D59: 34 | E59: 3 | F59: 37 | G59: 7 | H59: 5 | I59: 6 | P59: 92 | Q59: 5671 | R59: 0.01622288838
A60: History: Portugal | B60: DP501-DP999 | C60: 34134 | D60: 4 | E60: 2 | F60: 7 | G60: 4 | H60: 1 | I60: 0 | P60: 18 | Q60: 1488 | R60: 0.01209677419
A61: History: Switzerland | B61: DQ | C61: 34131 | D61: 10 | E61: 18 | F61: 2 | G61: 3 | H61: 1 | I61: 1 | P61: 35 | Q61: 2406 | R61: 0.01454696592
A62: History: Eastern Europe. Balkan Peninsula | B62: DR | C62: 34133 | D62: 10 | E62: 8 | F62: 6 | G62: 5 | H62: 10 | I62: 13 | P62: 52 | Q62: 2968 | R62: 0.01752021563
A63: History: Asia | B63: DS1-DS40 | C63: 34135 | D63: 18 | E63: 20 | F63: 31 | G63: 3 | H63: 7 | I63: 11 | P63: 90 | Q63: 1635 | R63: 0.05504587156
A64: History: Near East | B64: DS41-DS329 | C64: 34136 | D64: 99 | E64: 102 | F64: 71 | G64: 43 | H64: 65 | I64: 91 | P64: 471 | Q64: 16607 | R64: 0.02836153429
A65: History: Southern Asia | B65: DS330-DS499 | C65: 34135 | D65: 4 | E65: 34 | F65: 16 | G65: 15 | H65: 8 | I65: 5 | P65: 82 | Q65: 4333 | R65: 0.01892453266
A66: History: Southeastern Asia | B66: DS500-DS700 | C66: 34135 | D66: 16 | E66: 4 | F66: 24 | G66: 10 | H66: 12 | I66: 39 | P66: 105 | Q66: 4216 | R66: 0.02490512334
A67: History: China | B67: DS701-DS800 | C67: 34135 | D67: 12 | E67: 18 | F67: 38 | G67: 34 | H67: 26 | I67: 48 | P67: 176 | Q67: 6002 | R67: 0.02932355881
A68: History: Japan | B68: DS801-DS903 | C68: 34135 | D68: 16 | E68: 13 | F68: 45 | G68: 17 | H68: 30 | I68: 48 | P68: 169 | Q68: 2555 | R68: 0.06614481409
A69: History: Korea | B69: DS904-DS999 | C69: 34135 | D69: 17 | E69: 20 | F69: 26 | G69: 11 | H69: 13 | I69: 6 | P69: 93 | Q69: 926 | R69: 0.1004319654
A70: History: Africa | B70: DT1-DT42 | C70: 34137 | D70: 4 | E70: 2 | F70: 9 | G70: 1 | H70: 7 | I70: 2 | P70: 25 | Q70: 1615 | R70: 0.01547987616
A71: History: Egypt and Sudan, North Africa | B71: DT43-DT347 | C71: 34136 | D71: 36 | E71: 16 | F71: 39 | G71: 5 | H71: 35 | I71: 11 | P71: =SUM(D71:O71) -> 142 | Q71: 3863 | R71: =(P71/Q71) -> 0.0367589956
A72: History: Sub-Saharan Africa, South Africa | B72: DT348-DT3415 | C72: 34137 | D72: 30 | E72: 14 | F72: 58 | G72: 34 | H72: 21 | I72: 14 | P72: 171 | Q72: 7018 | R72: 0.02436591622
A73: History: Oceania (South Seas) | B73: DU1-DU619 | C73: 34135 | D73: 4 | E73: 1 | F73: 5 | G73: 1 | H73: 0 | I73: 0 | P73: 11 | Q73: 1796 | R73: 0.006124721604
A74: Hawaii | B74: DU620-DU629 | C74: 34140 | D74: 0 | E74: 0 | F74: 8 | G74: 0 | H74: 2 | I74: 0 | P74: 10 | Q74: 290 | R74: 0.03448275862
A75: History: Oceania (South Seas) | B75: DU630-DU999 | C75: 34135 | D75: 1 | E75: 0 | F75: 0 | G75: 0 | H75: 0 | I75: 2 | P75: 3 | Q75: 556 | R75: 0.005395683453
A76: History: Gypsies | B76: DX | C76: 34127 | D76: 0 | E76: 1 | F76: 0 | G76: 0 | H76: 1 | I76: 0 | P76: 2 | Q76: 160 | R76: 0.0125
A77: History of Americas: General, Indians | B77: E1-E139 | C77: 34140 | D77: 61 | E77: 105 | F77: 68 | G77: 43 | H77: 59 | I77: 89 | P77: 425 | Q77: 13763 | R77: 0.03087989537
A78: United States History | B78: E140-E999 | C78: 34140 | D78: 253 | E78: 233 | F78: 280 | G78: 207 | H78: 171 | I78: 224 | P78: 1368 | Q78: 37376 | R78: 0.0366010274
A79: State and Local History: Generally East of Utah | B79: F1-F820 | C79: 34140 | D79: 271 | E79: 241 | F79: 220 | G79: 122 | H79: 230 | I79: 279 | P79: 1363 | Q79: 25892 | R79: 0.05264174262
A80: Utah | B80: F821-F835 | C80: 34140 | D80: 82 | E80: 52 | F80: 104 | G80: 43 | H80: 39 | I80: 52 | P80: 372 | Q80: 2060 | R80: 0.1805825243
A81: State and Local History: Generally West of Utah | B81: F836-F999 | C81: 34140 | D81: 31 | E81: 12 | F81: 19 | G81: 14 | H81: 24 | I81: 20 | P81: 120 | Q81: 3976 | R81: 0.03018108652
A82: History: British America, Canada | B82: F1000-F1200 | C82: 34143 | D82: 4 | E82: 7 | F82: 14 | G82: 7 | H82: 3 | I82: 9 | P82: 44 | Q82: 3832 | R82: 0.0114822547
A83: History: Mexico | B83: F1201-F1400 | C83: 34144 | D83: 40 | E83: 91 | F83: 78 | G83: 17 | H83: 33 | I83: 99 | P83: 358 | Q83: 10713 | R83: 0.03341734341
A84: History: Central America, Caribbean Area | B84: F1401-F2200 | C84: 34144 | D84: 138 | E84: 105 | F84: 166 | G84: 62 | H84: 30 | I84: 58 | P84: 559 | Q84: 13644 | R84: 0.04097038991
A85: History: South America | B85: F2201-F9999 | C85: 34144 | D85: 76 | E85: 112 | F85: 182 | G85: 44 | H85: 18 | I85: 54 | P85: 486 | Q85: 30217 | R85: 0.01608366152
A86: Geography (General) | B86: G1-G999 | C86: 34150 | D86: 90 | E86: 90 | F86: 70 | G86: 49 | H86: 67 | I86: 62 | P86: 428 | Q86: 6830 | R86: 0.06266471449
A87: Atlases | B87: G1000-G3159 | C87: 34151 | D87: 63 | E87: 67 | F87: 53 | G87: 21 | H87: 61 | I87: 31 | P87: 296 | Q87: 4773 | R87: 0.06201550388
A88: Maps | B88: G3160-G9999 | C88: 34151 | D88: 43 | E88: 53 | F88: 52 | G88: 61 | H88: 52 | I88: 84 | P88: 345 | Q88: 353 | R88: 0.9773371105
A89: Mathematical Geography, Cartography | B89: GA | C89: 34150 | D89: 3 | E89: 7 | F89: 3 | G89: 3 | H89: 2 | I89: 7 | P89: 25 | Q89: 1172 | R89: 0.02133105802
A90: Physical Geography, Geomorphology, Hydrology | B90: GB | C90: 34150 | D90: 24 | E90: 3 | F90: 17 | G90: 4 | H90: 1 | I90: 13 | P90: 62 | Q90: 2902 | R90: 0.02136457615
A91: Oceanology | B91: GC | C91: 34260 | D91: 6 | E91: 0 | F91: 0 | G91: 0 | H91: 4 | I91: 2 | P91: 12 | Q91: 1085 | R91: 0.01105990783
A92: Environmental Science | B92: GE | C92: 34260 | D92: 12 | E92: 2 | F92: 1 | G92: 2 | H92: 3 | I92: 9 | P92: 29 | Q92: 1342 | R92: 0.021609538
A93: Anthropogeography | B93: GF | C93: 34150 | D93: 1 | E93: 3 | F93: 2 | G93: 0 | H93: 2 | I93: 0 | P93: 8 | Q93: 1414 | R93: 0.005657708628
A94: Anthrogeography, Ethnography, Prehistoric Archaeology | B94: GN | C94: 34152 | D94: 55 | E94: 21 | F94: 42 | G94: 32 | H94: 25 | I94: 23 | P94: 198 | Q94: 10656 | R94: 0.01858108108
A95: Folklore | B95: GR | C95: 34157 | D95: 16 | E95: 26 | F95: 23 | G95: 9 | H95: 46 | I95: 16 | P95: 136 | Q95: 4134 | R95: 0.03289791969
A96: Manners and Customs (General) | B96: GT | C96: 34152 | D96: 27 | E96: 75 | F96: 51 | G96: 32 | H96: 34 | I96: 35 | P96: 254 | Q96: 2843 | R96: 0.08934224411
A97: Recreation | B97: GV1-GV200 | C97: 34160 | D97: 3 | E97: 4 | F97: 10 | G97: 7 | H97: 4 | I97: 17 | P97: 45 | Q97: 2807 | R97: 0.0160313502
A98: Physical Training | B98: GV201-GV556 | C98: 34160 | D98: 6 | E98: 1 | F98: 9 | G98: 4 | H98: 4 | I98: 7 | P98: 31 | Q98: 2602 | R98: 0.01191391238
A99: Sports | B99: GV557-GV1198 | C99: 34160 | D99: 37 | E99: 55 | F99: 68 | G99: 29 | H99: 25 | I99: 43 | P99: 257 | Q99: 8374 | R99: 0.03069023167
A100: Games Amusements, Circuses, Carnivals, etc | B100: GV1199-GV9999 | C100: 34160 | D100: 15 | E100: 4 | F100: 8 | G100: 1 | H100: 9 | I100: 18 | P100: 55 | Q100: 1193 | R100: 0.0461022632
A101: The Social Sciences in General | B101: H | C101: 34170 | D101: 59 | E101: 47 | F101: 39 | G101: 43 | H101: 49 | I101: 42 | P101: 279 | Q101: 3934 | R101: 0.07092018302
A102: Statistics | B102: HA | C102: 34246 | D102: 9 | E102: 4 | F102: 3 | G102: 3 | H102: 3 | I102: 38 | P102: 60 | Q102: 4290 | R102: 0.01398601399
A103: Economic Theory | B103: HB | C103: 34174 | D103: 40 | E103: 33 | F103: 18 | G103: 17 | H103: 26 | I103: 18 | P103: 152 | Q103: 20305 | R103: 0.007485840926
A104: Economic History & Conditions: General, Ancient World | B104: HC1-HC42 | C104: 34174 | D104: 0 | E104: 0 | F104: 1 | G104: 0 | H104: 0 | I104: 0 | P104: 1 | Q104: 622 | R104: 0.001607717042
A105: Economic History & Conditions: Modern Economic History | B105: HC51-HC60 | C105: 34174 | D105: 0 | E105: 1 | F105: 5 | G105: 1 | H105: 0 | I105: 1 | P105: 8 | Q105: 2306 | R105: 0.003469210755
A106: Economic History & Conditions: Special Topics | B106: HC79-HC92 | C106: 34174 | D106: 1 | E106: 0 | F106: 2 | G106: 0 | H106: 2 | I106: 0 | P106: 5 | Q106: 1799 | R106: 0.002779321845
A107: Economic History & Conditions: U.S., Canada | B107: HC94-HC120 | C107: 34174 | D107: 2 | E107: 2 | F107: 6 | G107: 14 | H107: 9 | I107: 3 | P107: 36 | Q107: 5315 | R107: 0.006773283161
A108: Economic History & Conditions: Latin America | B108: HC121-HC160 | C108: 34174 | D108: 0 | E108: 3 | F108: 0 | G108: 1 | H108: 3 | I108: 0 | P108: 7 | Q108: 2990 | R108: 0.002341137124
A109: Economic History & Conditions: South America | B109: HC161-HC239 | C109: 34174 | D109: 1 | E109: 0 | F109: 7 | G109: 3 | H109: 0 | I109: 0 | P109: 11 | Q109: 4624 | R109: 0.002378892734
A110: Economic History & Conditions: Europe | B110: HC240-HC246 | C110: 34174 | D110: 0 | E110: 0 | F110: 1 | G110: 5 | H110: 0 | I110: 0 | P110: 6 | Q110: 1616 | R110: 0.003712871287
A111: Economic History & Conditions: Great Britain | B111: HC251-HC260.5 | C111: 34174 | D111: 0 | E111: 1 | F111: 0 | G111: 0 | H111: 0 | I111: 0 | P111: 1 | Q111: 1183 | R111: 0.0008453085376
A112: Economic History & Conditions: Europe | B112: HC261-HC330 | C112: 34174 | D112: 0 | E112: 0 | F112: 2 | G112: 0 | H112: 0 | I112: 0 | P112: 2 | Q112: 2072 | R112: 0.0009652509653
A113: Economic History & Conditions: Slavic | B113: HC331-HC340.6 | C113: 34174 | D113: 0 | E113: 0 | F113: 0 | G113: 1 | H113: 0 | I113: 0 | P113: 1 | Q113: 999 | R113: 0.001001001001
A114: Economic History & Conditions: Europe | B114: HC341-HC407 | C114: 34174 | D114: 0 | E114: 0 | F114: 0 | G114: 0 | H114: 0 | I114: 0 | P114: 0 | Q114: 927 | R114: 0
A115: Economic History & Conditions: Middle East | B115: HC411-HC420 | C115: 34174 | D115: 0 | E115: 0 | F115: 0 | G115: 0 | H115: 0 | I115: 0 | P115: 0 | Q115: 512 | R115: 0
A116: Economic History & Conditions: General Asia, China | B116: HC420.3-HC430.4 | C116: 34174 | D116: 0 | E116: 0 | F116: 0 | G116: 0 | H116: 0 | I116: 0 | P116: 0 | Q116: 582 | R116: 0
A117: Economic History & Conditions: Taiwan | B117: HC430.5 | C117: 34174 | D117: 0 | E117: 0 | F117: 0 | G117: 0 | H117: 0 | I117: 0 | P117: 0 | Q117: 54 | R117: 0
A118: Economic History & Conditions: India | B118: HC430.6-HC440.4 | C118: 34174 | D118: 0 | E118: 0 | F118: 1 | G118: 0 | H118: 0 | I118: 0 | P118: 1 | Q118: 363 | R118: 0.002754820937
A119: Economic History & Conditions: Pakistan | B119: HC440.5 | C119: 34174 | D119: 0 | E119: 0 | F119: 0 | G119: 0 | H119: 0 | I119: 0 | P119: 0 | Q119: 69 | R119: 0
A120: Economic History & Conditions: South East Asia | B120: HC440.6-HC460 | C120: 34174 | D120: 0 | E120: 0 | F120: 0 | G120: 1 | H120: 0 | I120: 1 | P120: 2 | Q120: 390 | R120: 0.005128205128
A121: Economic History & Conditions: Japan | B121: HC461-HC465 | C121: 34174 | D121: 0 | E121: 0 | F121: 0 | G121: 2 | H121: 0 | I121: 0 | P121: 2 | Q121: 511 | R121: 0.003913894325
A122: Economic History & Conditions: Korea | B122: HC466-HC470 | C122: 34174 | D122: 0 | E122: 0 | F122: 1 | G122: 0 | H122: 0 | I122: 0 | P122: 1 | Q122: 180 | R122: 0.005555555556
A123: Economic History & Conditions: Near East | B123: HC471-HC499 | C123: 34174 | D123: 0 | E123: 3 | F123: 2 | G123: 0 | H123: 0 | I123: 0 | P123: 5 | Q123: 321 | R123: 0.01557632399
A124: Economic History & Conditions: Africa | B124: HC500-HC584 | C124: 34174 | D124: 0 | E124: 0 | F124: 0 | G124: 0 | H124: 0 | I124: 0 | P124: 0 | Q124: 396 | R124: 0
A125: Economic History & Conditions: Oceans: Islands, Lands | B125: HC585-HC740 | C125: 34174 | D125: 0 | E125: 1 | F125: 0 | G125: 0 | H125: 0 | I125: 0 | P125: 1 | Q125: 358 | R125: 0.002793296089
A126: Economic History & Conditions: Near East | B126: HC800-HC835 | C126: 34136 | D126: 0 | E126: 1 | F126: 0 | G126: 0 | H126: 0 | I126: 0 | P126: 1 | Q126: 384 | R126: 0.002604166667
A127: Economic History & Conditions: Africa | B127: HC840-HC1085 | C127: 34137 | D127: 0 | E127: 2 | F127: 0 | G127: 0 | H127: 0 | I127: 0 | P127: 2 | Q127: 401 | R127: 0.004987531172
A128: Economics: Production | B128: HD1-HD100 | C128: 34174 | D128: 15 | E128: 16 | F128: 18 | G128: 6 | H128: 17 | I128: 17 | P128: 89 | Q128: 11894 | R128: 0.007482764419
A129: Economics: Land | B129: HD101-HD1400 | C129: 34174 | D129: 4 | E129: 1 | F129: 10 | G129: 2 | H129: 2 | I129: 0 | P129: 19 | Q129: 3692 | R129: 0.005146262189
A130: Agricultural Economics | B130: HD1401-HD2320 | C130: 34174 | D130: 2 | E130: 12 | F130: 3 | G130: 2 | H130: 5 | I130: 0 | P130: 24 | Q130: 5141 | R130: 0.004668352461
A131: Economics: Industry | B131: HD2321-HD4800 | C131: 34174 | D131: 2 | E131: 3 | F131: 6 | G131: 2 | H131: 6 | I131: 11 | P131: 30 | Q131: 5135 | R131: 0.005842259007
A132: Labor | B132: HD4801-HD8999 | C132: 34174 | D132: 10 | E132: 3 | F132: 18 | G132: 8 | H132: 12 | I132: 3 | P132: 54 | Q132: 20629 | R132: 0.002617674148
A133: Special Industries and Trades | B133: HD9000-HD9999 | C133: 34180 | D133: 8 | E133: 10 | F133: 28 | G133: 8 | H133: 6 | I133: 23 | P133: 83 | Q133: 10937 | R133: 0.007588918351
A134: Transportation | B134: HE1-HE7600 | C134: 34174 | D134: 1 | E134: 8 | F134: 4 | G134: 3 | H134: 4 | I134: 5 | P134: 25 | Q134: 3851 | R134: 0.006491820306
A135: Telecommunications Industry | B135: HE7601-HE9760 | C135: 34176 | D135: 7 | E135: 1 | F135: 4 | G135: 1 | H135: 0 | I135: 0 | P135: =SUM(D135:O135) -> 13 | Q135: 1119 | R135: =(P135/Q135) -> 0.01161751564
A136: Transportation | B136: HE9761-HE9999 | C136: 34174 | D136: 1 | E136: 1 | F136: 0 | G136: 0 | H136: 0 | I136: 0 | P136: 2 | Q136: 298 | R136: 0.006711409396
A137: Commerce | B137: HF1-HF1400 | C137: 34180 | D137: 6 | E137: 2 | F137: 4 | G137: 0 | H137: 4 | I137: 5 | P137: 21 | Q137: 2858 | R137: 0.007347795661
A138: Commercial Policy | B138: HF1401-HF5000 | C138: 34180 | D138: 1 | E138: 6 | F138: 2 | G138: 0 | H138: 0 | I138: 1 | P138: 10 | Q138: 4911 | R138: 0.002036245164
A139: Business | B139: HF5001-HF5400 | C139: 34180 | D139: 3 | E139: 4 | F139: 9 | G139: 1 | H139: 7 | I139: 12 | P139: 36 | Q139: 2038 | R139: 0.01766437684
A140: Marketing | B140: HF5401-HF5545 | C140: 34180 | D140: 5 | E140: 12 | F140: 22 | G140: 3 | H140: 12 | I140: 14 | P140: 68 | Q140: 4467 | R140: 0.01522274457
A141: Office Management | B141: HF5546-HF5600 | C141: 34180 | D141: 2 | E141: 1 | F141: 6 | G141: 2 | H141: 7 | I141: 5 | P141: 23 | Q141: 4308 | R141: 0.005338904364
A142: Accounting, Business Math | B142: HF5601-HF5716 | C142: 34185 | D142: 11 | E142: 1 | F142: 12 | G142: 6 | H142: 3 | I142: 5 | P142: 38 | Q142: 4216 | R142: 0.009013282732
A143: Business Communications, Shipping | B143: HF5717-HF5800 | C143: 34180 | D143: 2 | E143: 2 | F143: 4 | G143: 0 | H143: 0 | I143: 0 | P143: 8 | Q143: 634 | R143: 0.01261829653
A144: Advertising | B144: HF5801-HF9999 | C144: 34176 | D144: 6 | E144: 6 | F144: 20 | G144: 11 | H144: 1 | I144: 7 | P144: 51 | Q144: 1979 | R144: 0.02577059121
A145: Finance | B145: HG1-HG1500 | C145: 34180 | D145: 27 | E145: 7 | F145: 20 | G145: 13 | H145: 9 | I145: 13 | P145: 89 | Q145: 4664 | R145: 0.01908233276
A146: Banking & Credit | B146: HG1501-HG3769 | C146: 34180 | D146: 11 | E146: 0 | F146: 3 | G146: 0 | H146: 58 | I146: 1 | P146: 73 | Q146: 3819 | R146: 0.01911495156
A147: Foreign Exchange | B147: HG3810-HG4000 | C147: 34180 | D147: 1 | E147: 2 | F147: 5 | G147: 0 | H147: 3 | I147: 3 | P147: 14 | Q147: 1828 | R147: 0.007658643326
A148: Finance Management | B148: HG4001-HG8010 | C148: 34180 | D148: 7 | E148: 4 | F148: 39 | G148: 12 | H148: 20 | I148: 13 | P148: 95 | Q148: 6330 | R148: 0.01500789889
A149: Insurance | B149: HG8011-HG9999 | C149: 34180 | D149: 0 | E149: 0 | F149: 2 | G149: 0 | H149: 1 | I149: 7 | P149: 10 | Q149: 1314 | R149: 0.007610350076
A150: Public Finance | B150: HJ | C150: 34185 | D150: 5 | E150: 3 | F150: 9 | G150: 4 | H150: 0 | I150: 2 | P150: 23 | Q150: 4538 | R150: 0.005068312032
A151: Sociology: General Works, Theory | B151: HM | C151: 34190 | D151: 40 | E151: 33 | F151: 43 | G151: 25 | H151: 27 | I151: 23 | P151: 191 | Q151: 11250 | R151: 0.01697777778
A152: Social Problems | B152: HN1-HN49 | C152: 34190 | D152: 2 | E152: 2 | F152: 1 | G152: 2 | H152: 1 | I152: 5 | P152: 13 | Q152: 1848 | R152: 0.007034632035
A153: Social History: United States | B153: HN50-HN90 | C153: 34190 | D153: 3 | E153: 6 | F153: 7 | G153: 3 | H153: 5 | I153: 1 | P153: 25 | Q153: 2439 | R153: 0.0102501025
A154: Social History: Other Countries | B154: HN101-HN991 | C154: 34190 | D154: 7 | E154: 10 | F154: 12 | G154: 14 | H154: 9 | I154: 0 | P154: 52 | Q154: 6822 | R154: 0.007622398124
A155: Family, Marriage, Gender Role | B155: HQ1-HQ1099 | C155: 34191 | D155: 108 | E155: 90 | F155: 143 | G155: 36 | H155: 60 | I155: 48 | P155: 485 | Q155: 15555 | R155: 0.03117968499
A156: Women, Feminism | B156: HQ1100-HQ9999 | C156: 34192 | D156: 30 | E156: 35 | F156: 82 | G156: 44 | H156: 38 | I156: 42 | P156: 271 | Q156: 7869 | R156: 0.0344389376
A157: Societies: Secret, Benevolent, Etc. | B157: HS | C157: 34190 | D157: 5 | E157: 1 | F157: 5 | G157: 1 | H157: 1 | I157: 5 | P157: 18 | Q157: 1282 | R157: 0.01404056162
A158: Communities, Classes, Races | B158: HT-HU | C158: 34190 | D158: 21 | E158: 22 | F158: 27 | G158: 29 | H158: 18 | I158: 6 | P158: 123 | Q158: 9767 | R158: 0.01259342685
A159: Social Work | B159: HV1-HV4996 | C159: 34193 | D159: 36 | E159: 39 | F159: 32 | G159: 31 | H159: 19 | I159: 15 | P159: 172 | Q159: 10727 | R159: 0.01603430596
A160: Substance Abuse | B160: HV4997-HV6000 | C160: 34193 | D160: 0 | E160: 11 | F160: 6 | G160: 5 | H160: 1 | I160: 1 | P160: 24 | Q160: 2587 | R160: 0.009277155006
A161: Criminology | B161: HV6001-HV9999 | C161: 34193 | D161: 26 | E161: 57 | F161: 63 | G161: 36 | H161: 37 | I161: 34 | P161: 253 | Q161: 10787 | R161: 0.02345415778
A162: Socialism, Communism, Anarchism, Utopian | B162: HX | C162: 34200 | D162: 5 | E162: 32 | F162: 18 | G162: 25 | H162: 1 | I162: 7 | P162: 88 | Q162: 8002 | R162: 0.01099725069
A163: Political Science, Constitutional History, General | B163: J-JK | C163: 34200 | D163: 89 | E163: 98 | F163: 114 | G163: 102 | H163: 68 | I163: 71 | P163: 542 | Q163: 23605 | R163: 0.02296123703
A164: Constitutional History & Administration: British | B164: JL | C164: 34130 | D164: 5 | E164: 0 | F164: 0 | G164: 5 | H164: 0 | I164: 3 | P164: 13 | Q164: 5521 | R164: 0.002354645897
A165: Constitutional History & Administration | B165: JN | C165: 34132 | D165: 1 | E165: 5 | F165: 7 | G165: 16 | H165: 6 | I165: 3 | P165: 38 | Q165: 9687 | R165: 0.003922783111
A166: Constitutional History: Asia, Near East, Africa, Australia, Ocean | B166: JQ | C166: 34135 | D166: 5 | E166: 9 | F166: 7 | G166: 0 | H166: 3 | I166: 9 | P166: 33 | Q166: 2401 | R166: 0.01374427322
A167: Local Government | B167: JS | C167: 34200 | D167: 0 | E167: 0 | F167: 1 | G167: 0 | H167: 1 | I167: 1 | P167: 3 | Q167: 2535 | R167: 0.001183431953
A168: Colonies and Colonization | B168: JV1-JV6000 | C168: 34200 | D168: 0 | E168: 1 | F168: 2 | G168: 1 | H168: 0 | I168: 0 | P168: 4 | Q168: 648 | R168: 0.006172839506
A169: Emigration & Immigration | B169: JV6001-JV9999 | C169: 34200 | D169: 7 | E169: 1 | F169: 19 | G169: 7 | H169: 1 | I169: 8 | P169: 43 | Q169: 1592 | R169: 0.02701005025
A170: International Law | B170: JX | C170: 34200 | D170: 5 | E170: 3 | F170: 2 | G170: 7 | H170: 3 | I170: 2 | P170: 22 | Q170: 7320 | R170: 0.003005464481
A171: International Relations | B171: JZ | C171: 34200 | D171: 17 | E171: 18 | F171: 31 | G171: 68 | H171: 4 | I171: 28 | P171: 166 | Q171: 2371 | R171: 0.07001265289
A172: Law: General | B172: K-KC | C172: 34200 | D172: 49 | E172: 65 | F172: 41 | G172: 19 | H172: 32 | I172: 42 | P172: 248 | Q172: 647 | R172: 0.3833075734
A173: Law: United Kingdom and Ireland | B173: KD | C173: 34200 | D173: 0 | E173: 0 | F173: 0 | G173: 0 | H173: 0 | I173: 0 | P173: 0 | Q173: 118 | R173: 0
A174: Law: Canada | B174: KE-KEZ | C174: 34200 | D174: 0 | E174: 0 | F174: 0 | G174: 0 | H174: 0 | I174: 0 | P174: 0 | Q174: 35 | R174: 0
A175: Law: U.S. | B175: KF-KFZ | C175: 34200 | D175: 16 | E175: 5 | F175: 42 | G175: 17 | H175: 8 | I175: 10 | P175: 98 | Q175: 4077 | R175: 0.02403728232
A176: Law: Other Countries | B176: KG-KWX | C176: 34200 | D176: 1 | E176: 1 | F176: 0 | G176: 13 | H176: 1 | I176: 2 | P176: 18 | Q176: 6225 | R176: 0.002891566265
A177: Education-General | B177: L | C177: 34205 | D177: 104 | E177: 94 | F177: 88 | G177: 53 | H177: 111 | I177: 77 | P177: 527 | Q177: 4741 | R177: 0.1111579835
A178: History of Education | B178: LA-LB4 | C178: 34205 | D178: 4 | E178: 11 | F178: 12 | G178: 13 | H178: 4 | I178: 10 | P178: 54 | Q178: 7192 | R178: 0.007508342603
A179: Theory & Practice | B179: LB5-LB1050 | C179: 34205 | D179: 56 | E179: 42 | F179: 34 | G179: 36 | H179: 26 | I179: 22 | P179: 216 | Q179: 10824 | R179: 0.0199556541
A180: Educational Psychology | B180: LB1051-LB1100 | C180: 34205 | D180: 2 | E180: 10 | F180: 0 | G180: 10 | H180: 1 | I180: 2 | P180: 25 | Q180: 2061 | R180: 0.01213003396
A181: Child Study, Pre-school - 12 | B181: LB1101-LB1704 | C181: 34205 | D181: 14 | E181: 14 | F181: 27 | G181: 9 | H181: 14 | I181: 11 | P181: 89 | Q181: 8585 | R181: 0.01036691904
A182: Education and Train of Teachers | B182: LB1705-LB2299 | C182: 34205 | D182: 4 | E182: 2 | F182: 4 | G182: 0 | H182: 13 | I182: 4 | P182: 27 | Q182: 2166 | R182: 0.01246537396
A183: Higher Education | B183: LB2300-LB2798 | C183: 34205 | D183: 14 | E183: 31 | F183: 20 | G183: 10 | H183: 7 | I183: 20 | P183: 102 | Q183: 5331 | R183: 0.01913337085
A184: Consulting, Admin | B184: LB2799-LB3200 | C184: 34205 | D184: 11 | E184: 5 | F184: 92 | G184: 11 | H184: 28 | I184: 3 | P184: 150 | Q184: 6773 | R184: 0.02214675919
A185: School Buildings | B185: LB3201-LB9999 | C185: 34205 | D185: 0 | E185: 2 | F185: 0 | G185: 4 | H185: 2 | I185: 0 | P185: 8 | Q185: 946 | R185: 0.008456659619
A186: Special Aspects of Education | B186: LC1-LC1098 | C186: 34205 | D186: 6 | E186: 8 | F186: 36 | G186: 19 | H186: 11 | I186: 13 | P186: 93 | Q186: 6871 | R186: 0.01353514772
A187: Multicultural Education | B187: LC1099 | C187: 34205 | D187: 0 | E187: 0 | F187: 4 | G187: 0 | H187: 0 | I187: 0 | P187: 4 | Q187: 381 | R187: 0.01049868766
A188: Education of Special Classes of Persons, General | B188: LC1100-LC2637 | C188: 34205 | D188: 0 | E188: 12 | F188: 1 | G188: 6 | H188: 0 | I188: 2 | P188: 21 | Q188: 658 | R188: 0.03191489362
A189: Hispanic American Education | B189: LC2638-LC2698 | C189: 34205 | D189: 0 | E189: 0 | F189: 0 | G189: 0 | H189: 1 | I189: 0 | P189: 1 | Q189: 177 | R189: 0.005649717514
A190: Afro-American Education | B190: LC2699-LC3000 | C190: 34205 | D190: 0 | E190: 3 | F190: 0 | G190: 0 | H190: 0 | I190: 0 | P190: 3 | Q190: 426 | R190: 0.007042253521
A191: Education of Special Classes of Persons, Other Groups | B191: LC3001-LC3899 | C191: 34205 | D191: 2 | E191: 2 | F191: 6 | G191: 8 | H191: 0 | I191: 0 | P191: 18 | Q191: 779 | R191: 0.02310654685
A192: Special Education | B192: LC3900-LC5160 | C192: 34205 | D192: 2 | E192: 2 | F192: 8 | G192: 11 | H192: 8 | I192: 15 | P192: 46 | Q192: 3804 | R192: 0.01209253417
A193: Education Extension, Adult Education, Continuing Education | B193: LC5161-LC9999 | C193: 34205 | D193: 1 | E193: 3 | F193: 2 | G193: 6 | H193: 3 | I193: 0 | P193: 15 | Q193: 1454 | R193: 0.01031636864
A194: Education: Individual Institutions: Uni | B194: LD | C194: 34205 | D194: 4 | E194: 0 | F194: 5 | G194: 6 | H194: 2 | I194: 0 | P194: 17 | Q194: 1367 | R194: 0.01243599122
A195: Education: Institutions | B195: LE-LT | C195: 34205 | D195: 1 | E195: 1 | F195: 4 | G195: 8 | H195: 0 | I195: 1 | P195: 15 | Q195: 1885 | R195: 0.007957559682
A196: Visual Arts (General) | B196: N | C196: 34215 | D196: 187 | E196: 419 | F196: 309 | G196: 127 | H196: 315 | I196: 250 | P196: 1607 | Q196: 20112 | R196: 0.07990254574
A197: Architecture | B197: NA | C197: 34216 | D197: 66 | E197: 55 | F197: 71 | G197: 48 | H197: 115 | I197: 86 | P197: 441 | Q197: 11058 | R197: 0.03988062941
A198: Sculpture | B198: NB | C198: 34215 | D198: 27 | E198: 37 | F198: 58 | G198: 14 | H198: 45 | I198: 30 | P198: 211 | Q198: 2768 | R198: 0.0762283237
A199: Graphic Arts (General), Drawing, Design | B199: NC | C199: 34216 | D199: 180 | E199: 267 | F199: 196 | G199: 73 | H199: 247 | I199: 128 | P199: =SUM(D199:O199) -> 1091 | Q199: 4531 | R199: =(P199/Q199) -> 0.2407856985
A200: Painting | B200: ND | C200: 34215 | D200: 227 | E200: 342 | F200: 297 | G200: 106 | H200: 193 | I200: 130 | P200: 1295 | Q200: 13109 | R200: 0.09878709284
... 368 more rows

Sheet Report Sections
A1: Section | B1: Title
A2: ASIAN LIBRARY | B2: Report Log for Asian General Chinese
A3: ASIAN LIBRARY | B3: Report Log for Asian General General
A4: ASIAN LIBRARY | B4: Report Log for Asian General Japanese
A5: ASIAN LIBRARY | B5: Report Log for Asian General Korean
A6: CANADIAN DOCUMENTS | B6: Report Log for Lee Charge Statistics CANDOC
A7: LRC | B7: Report Log for Lee Charge Statistics LRC
A8: CURRICULUM LIBRARY | B8: Report Log for Lee Charge Statistics Curriculum
A9: JUVENILE | B9: Report Log for Lee Charge Statistics Juvenile
A10: MIDDLE EAST COLLECTION | B10: Report Log for Lee Charge Statistics ME,ICE,WELSH
A11: MUSIC LIBRARY | B11: Report Log for Lee Charge Statistics Music
A12: SUDOC | B12: Report Log for Lee Charge Statistics SUDOC
A13: SAMPLER | B13: Report Log for Lee Charge Statistics Sampler
A14: DEWEY COLLECTION STILL BEING CHECKED OUT | B14: Report Log for Lee Charge Statistics Dewey
A15: GENERAL STACKS | B15: Report Log for Lee Charge Statistics LC A-BX
A16: GENERAL STACKS | B16: Report Log for Lee Charge Statistics LC BX-DL
A17: GENERAL STACKS | B17: Report Log for Lee Charge Statistics LC DP-F
A18: GENERAL STACKS | B18: Report Log for Lee Charge Statistics LC G-HC
A19: GENERAL STACKS | B19: Report Log for Lee Charge Statistics LC HC-HE
A20: GENERAL STACKS | B20: Report Log for Lee Charge Statistics LC HF-HU
A21: GENERAL STACKS | B21: Report Log for Lee Charge Statistics LC HV-LB
A22: GENERAL STACKS | B22: Report Log for Lee Charge Statistics LC LB-LT,N-P
A23: GENERAL STACKS | B23: Report Log for Lee Charge Statistics LC PA-PG
A24: GENERAL STACKS | B24: Report Log for Lee Charge Statistics LC PH-PN
A25: GENERAL STACKS | B25: Report Log for Lee Charge Statistics LC PN-PR
A26: GENERAL STACKS | B26: Report Log for Lee Charge Statistics LC PR-Q
A27: GENERAL STACKS | B27: Report Log for Lee Charge Statistics LC QA-QR
A28: GENERAL STACKS | B28: Report Log for Lee Charge Statistics LC R-TH
A29: GENERAL STACKS | B29: Report Log for Lee Charge Statistics LC TJ-ZA
A30: WORLD CLASSICS | B30: Report Log for Lee Charges World Classics

Sheet Mappings
A1: Description | B1: Call Number | C1: Full Call Number
A2: GENERAL STACKS
A3: Collections, Encyclopedias, Dictionaries, Indexes, Etc | B3: AC-AL | C3: AC-AL
A4: Museums, Collectors and Collecting | B4: AM | C4: AM
A5: Newspapers, Periodicals, Societies, Yearbooks, Est | B5: AN-AZ | C5: AN-AZ
A6: Philosophy: Periodicals, Societies, Con | B6: B1-B68 | C6: B000001-B000068
A7: Philosophy: History and Systems | B7: B69-B9999 | C7: B000069-B009999
A8: Logic | B8: BC | C8: BC
A9: Speculative Philosophy | B9: BD | C9: BD
A10: Psychology | B10: BF1-BF1000 | C10: BF000001-BF001000
A11: Parapsychology, Occult Sciences | B11: BF1001-BF9999 | C11: BF001001-BF009999
A12: Aesthetics | B12: BH | C12: BH
A13: Ethics, Social Usages, Etiquette | B13: BJ | C13: BJ
A14: Religions. Mythology. Rationalism | B14: BL | C14: BL
A15: Judaism | B15: BM | C15: BM
A16: Islam. Bahaism. Theosophy, etc. | B16: BP | C16: BP
A17: Buddhism | B17: BQ | C17: BQ
A18: Christianity (General) | B18: BR | C18: BR
A19: Bible | B19: BS | C19: BS
A20: Doctrinal Theology | B20: BT | C20: BT
A21: Practical Theology | B21: BV | C21: BV
A22: Eastern Christian Churches | B22: BX1-BX799 | C22: BX000001-BX000799
A23: Roman Catholic Churches | B23: BX800-BX4799 | C23: BX000800-BX004799
A24: Protestantism | B24: BX4800-BX8599 | C24: BX004800-BX008599
A25: Mormonism-General, Natural Theology | B25: BX8600-BX8619 | C25: BX008600-BX008619
A26: Mormonism-Scriptures | B26: BX8620-BX8629 | C26: BX008620-BX008629
A27: Mormonism-Doctrinal Theology | B27: BX8630-BX8639 | C27: BX008630-BX008639
A28: Mormonism-Practical Theology | B28: BX8640-BX8649 | C28: BX008640-BX008649
A29: Mormonism-Ecclesiastical Theology | B29: BX8650-BX8659 | C29: BX008650-BX008659
A30: Mormonism-Religious Education | B30: BX8660-BX8669 | C30: BX008660-BX008669
A31: Mormonism-Biography & History | B31: BX8670-BX8679 | C31: BX008670-BX008679
A32: Mormonism-Fine Arts & Fiction | B32: BX8680-BX8689 | C32: BX008680-BX008689
A33: Mormonims-Church Schisms | B33: BX8690-BX8699 | C33: BX008690-BX008699
A34: Protestantism | B34: BX8700-BX9999 | C34: BX008700-BX009999
A35: Aux.Sciences of History: General, Hist. of Civilization | B35: C-CB | C35: C-CB
A36: Archaeology (General) | B36: CC | C36: CC
A37: Diplomatics. Archives. Seals, Chronology | B37: CD-CE | C37: CD-CE
A38: Numismatics | B38: CJ | C38: CJ
A39: Epigraphy | B39: CN | C39: CN
A40: Heraldry, Genealogy | B40: CR-CS | C40: CR-CS
A41: Biography | B41: CT | C41: CT
A42: History (General) | B42: D1-D899 | C42: D000001-D000899
A43: History of Europe, General | B43: D900-D2009 | C43: D000900-D002009
A44: History: Great Britain | B44: DA | C44: DA
A45: History: Central Europe | B45: DAW | C45: DAW
A46: History: Austria, Austro-Hungarian Empire | B46: DB | C46: DB
A47: History: France | B47: DC | C47: DC
A48: History: Germany | B48: DD | C48: DD
A49: History: Mediterranean Region, Greco-Roman | B49: DE | C49: DE
A50: History: Greece | B50: DF | C50: DF
A51: History: Italy | B51: DG | C51: DG
A52: History: Netherlands | B52: DH-DJ | C52: DH-DJ
A53: History: Eastern Europe | B53: DJK | C53: DJK
A54: History: Russia, U.S.S.R. | B54: DK | C54: DK
A55: History: Northern Europe, Scandinavia | B55: DL | C55: DL
A56: History: Spain | B56: DP1-DP500 | C56: DP000001-DP000500
A57: History: Portugal | B57: DP501-DP999 | C57: DP000501-DP000999
A58: History: Switzerland | B58: DQ | C58: DQ
A59: History: Eastern Europe. Balkan Peninsula | B59: DR | C59: DR
A60: History: Asia | B60: DS1-DS40 | C60: DS000001-DS000040
A61: History: Near East | B61: DS41-DS329 | C61: DS000041-DS000329
A62: History: Southern Asia | B62: DS330-DS499 | C62: DS000330-DS000499
A63: History: Southeastern Asia | B63: DS500-DS700 | C63: DS000500-DS000700
A64: History: China | B64: DS701-DS800 | C64: DS000701-DS000800
A65: History: Japan | B65: DS801-DS903 | C65: DS000801-DS000903
A66: History: Korea | B66: DS904-DS999 | C66: DS000904-DS000999
A67: History: Africa | B67: DT1-DT42 | C67: DT000001-DT000042
A68: History: Egypt and Sudan, North Africa | B68: DT43-DT347 | C68: DT000043-DT000347
A69: History: Sub-Saharan Africa, South Africa | B69: DT348-DT3415 | C69: DT000348-DT003415
A70: History: Oceania (South Seas) | B70: DU1-DU619 | C70: DU000001-DU000619
A71: Hawaii | B71: DU620-DU629 | C71: DU000620-DU000629
A72: History: Oceania (South Seas) | B72: DU630-DU999 | C72: DU000630-DU000999
A73: History: Gypsies | B73: DX | C73: DX
A74: History of Americas: General, Indians | B74: E1-E139 | C74: E000001-E000139
A75: United States History | B75: E140-E999 | C75: E000140-E000999
A76: State and Local History: Generally East of Utah | B76: F1-F820 | C76: F000001-F000820
A77: Utah | B77: F821-F835 | C77: F000821-F000835
A78: State and Local History: Generally West of Utah | B78: F836-F999 | C78: F000836-F000999
A79: History: British America, Canada | B79: F1000-F1200 | C79: F001000-F001200
A80: History: Mexico | B80: F1201-F1400 | C80: F001201-F001400
A81: History: Central America, Caribbean Area | B81: F1401-F2200 | C81: F001401-F002200
A82: History: South America | B82: F2201-F9999 | C82: F002201-F009999
A83: Geography (General) | B83: G1-G999 | C83: G000001-G000999
A84: Atlases | B84: G1000-G3159 | C84: G001000-G003159
A85: Maps | B85: G3160-G9999 | C85: G003160-G009999
A86: Mathematical Geography, Cartography | B86: GA | C86: GA
A87: Physical Geography, Geomorphology, Hydrology | B87: GB | C87: GB
A88: Oceanology | B88: GC | C88: GC
A89: Environmental Science | B89: GE | C89: GE
A90: Anthropogeography | B90: GF | C90: GF
A91: Anthrogeography, Ethnography, Prehistoric Archaeology | B91: GN | C91: GN
A92: Folklore | B92: GR | C92: GR
A93: Manners and Customs (General) | B93: GT | C93: GT
A94: Recreation | B94: GV1-GV200 | C94: GV000001-GV000200
A95: Physical Training | B95: GV201-GV556 | C95: GV000201-GV000556
A96: Sports | B96: GV557-GV1198 | C96: GV000557-GV001198
A97: Games Amusements, Circuses, Carnivals, etc | B97: GV1199-GV9999 | C97: GV001199-GV009999
A98: The Social Sciences in General | B98: H | C98: H
A99: Statistics | B99: HA | C99: HA
A100: Economic Theory | B100: HB | C100: HB
A101: Economic History & Conditions: General, Ancient World | B101: HC1-HC42 | C101: HC000001-HC000042
A102: Economic History & Conditions: Modern Economic History | B102: HC51-HC60 | C102: HC000051-HC000060
A103: Economic History & Conditions: Special Topics | B103: HC79-HC92 | C103: HC000079-HC000092
A104: Economic History & Conditions: U.S., Canada | B104: HC94-HC120 | C104: HC000094-HC000120
A105: Economic History & Conditions: Latin America | B105: HC121-HC160 | C105: HC000121-HC000160
A106: Economic History & Conditions: South America | B106: HC161-HC239 | C106: HC000161-HC000239
A107: Economic History & Conditions: Europe | B107: HC240-HC246 | C107: HC000240-HC000246
A108: Economic History & Conditions: Great Britain | B108: HC251-HC260.5 | C108: HC000251-HC000260.5
A109: Economic History & Conditions: Europe | B109: HC261-HC330 | C109: HC000261-HC000330
A110: Economic History & Conditions: Slavic | B110: HC331-HC340.6 | C110: HC000331-HC000340.6
A111: Economic History & Conditions: Europe | B111: HC341-HC407 | C111: HC000341-HC000407
A112: Economic History & Conditions: Middle East | B112: HC411-HC420 | C112: HC000411-HC000420
A113: Economic History & Conditions: General Asia, China | B113: HC420.3-HC430.4 | C113: HC000420.3-HC000430.4
A114: Economic History & Conditions: Taiwan | B114: HC430.5 | C114: HC000430.5
A115: Economic History & Conditions: India | B115: HC430.6-HC440.4 | C115: HC000430.6-HC000440.4
A116: Economic History & Conditions: Pakistan | B116: HC440.5 | C116: HC000440.5
A117: Economic History & Conditions: South East Asia | B117: HC440.6-HC460 | C117: HC000440.6-HC000460
A118: Economic History & Conditions: Japan | B118: HC461-HC465 | C118: HC000461-HC000465
A119: Economic History & Conditions: Korea | B119: HC466-HC470 | C119: HC000466-HC000470
A120: Economic History & Conditions: Near East | B120: HC471-HC499 | C120: HC000471-HC000499
A121: Economic History & Conditions: Africa | B121: HC500-HC584 | C121: HC000500-HC000584
A122: Economic History & Conditions: Oceans: Islands, Lands | B122: HC585-HC740 | C122: HC000585-HC000740
A123: Economic History & Conditions: Near East | B123: HC800-HC835 | C123: HC000800-HC000835
A124: Economic History & Conditions: Africa | B124: HC840-HC1085 | C124: HC000840-HC001085
A125: Economics: Production | B125: HD1-HD100 | C125: HD000001-HD000100
A126: Economics: Land | B126: HD101-HD1400 | C126: HD000101-HD001400
A127: Agricultural Economics | B127: HD1401-HD2320 | C127: HD001401-HD002320
A128: Economics: Industry | B128: HD2321-HD4800 | C128: HD002321-HD004800
A129: Labor | B129: HD4801-HD8999 | C129: HD004801-HD008999
A130: Special Industries and Trades | B130: HD9000-HD9999 | C130: HD009000-HD009999
A131: Transportation | B131: HE1-HE7600 | C131: HE000001-HE007600
A132: Telecommunications Industry | B132: HE7601-HE9760 | C132: HE007601-HE009760
A133: Transportation | B133: HE9761-HE9999 | C133: HE009761-HE009999
A134: Commerce | B134: HF1-HF1400 | C134: HF000001-HF001400
A135: Commercial Policy | B135: HF1401-HF5000 | C135: HF001401-HF005000
A136: Business | B136: HF5001-HF5400 | C136: HF005001-HF005400
A137: Marketing | B137: HF5401-HF5545 | C137: HF005401-HF005545
A138: Office Management | B138: HF5546-HF5600 | C138: HF005546-HF005600
A139: Accounting, Business Math | B139: HF5601-HF5716 | C139: HF005601-HF005716
A140: Business Communications, Shipping | B140: HF5717-HF5800 | C140: HF005717-HF005800
A141: Advertising | B141: HF5801-HF9999 | C141: HF005801-HF009999
A142: Finance | B142: HG1-HG1500 | C142: HG000001-HG001500
A143: Banking & Credit | B143: HG1501-HG3769 | C143: HG001501-HG003769
A144: Foreign Exchange | B144: HG3810-HG4000 | C144: HG003810-HG004000
A145: Finance Management | B145: HG4001-HG8010 | C145: HG004001-HG008010
A146: Insurance | B146: HG8011-HG9999 | C146: HG008011-HG009999
A147: Public Finance | B147: HJ | C147: HJ
A148: Sociology: General Works, Theory | B148: HM | C148: HM
A149: Social Problems | B149: HN1-HN49 | C149: HN000001-HN000049
A150: Social History: United States | B150: HN50-HN90 | C150: HN000050-HN000090
A151: Social History: Other Countries | B151: HN101-HN991 | C151: HN000101-HN000991
A152: Family, Marriage, Gender Role | B152: HQ1-HQ1099 | C152: HQ000001-HQ001099
A153: Women, Feminism | B153: HQ1100-HQ9999 | C153: HQ001100-HQ009999
A154: Societies: Secret, Benevolent, Etc. | B154: HS | C154: HS
A155: Communities, Classes, Races | B155: HT-HU | C155: HT-HU
A156: Social Work | B156: HV1-HV4996 | C156: HV000001-HV004996
A157: Substance Abuse | B157: HV4997-HV6000 | C157: HV004997-HV006000
A158: Criminology | B158: HV6001-HV9999 | C158: HV006001-HV009999
A159: Socialism, Communism, Anarchism, Utopian | B159: HX | C159: HX
A160: Political Science, Constitutional History, General | B160: J-JK | C160: J-JK
A161: Constitutional History & Administration: British | B161: JL | C161: JL
A162: Constitutional History & Administration | B162: JN | C162: JN
A163: Constitutional History: Asia, Near East, Africa, Australia, Ocean | B163: JQ | C163: JQ
A164: Local Government | B164: JS | C164: JS
A165: Colonies and Colonization | B165: JV1-JV6000 | C165: JV000001-JV006000
A166: Emigration & Immigration | B166: JV6001-JV9999 | C166: JV006001-JV009999
A167: International Law | B167: JX | C167: JX
A168: International Relations | B168: JZ | C168: JZ
A169: Law: General | B169: K-KC | C169: K-KC
A170: Law: United Kingdom and Ireland | B170: KD | C170: KD
A171: Law: Canada | B171: KE-KEZ | C171: KE-KEZ
A172: Law: U.S. | B172: KF-KFZ | C172: KF-KFZ
A173: Law: Other Countries | B173: KG-KWX | C173: KG-KWX
A174: Education-General | B174: L | C174: L
A175: History of Education | B175: LA-LB4 | C175: LA-LB000004
A176: Theory & Practice | B176: LB5-LB1050 | C176: LB000005-LB001050
A177: Educational Psychology | B177: LB1051-LB1100 | C177: LB001051-LB001100
A178: Child Study, Pre-school - 12 | B178: LB1101-LB1704 | C178: LB001101-LB001704
A179: Education and Train of Teachers | B179: LB1705-LB2299 | C179: LB001705-LB002299
A180: Higher Education | B180: LB2300-LB2798 | C180: LB002300-LB002798
A181: Consulting, Admin | B181: LB2799-LB3200 | C181: LB002799-LB003200
A182: School Buildings | B182: LB3201-LB9999 | C182: LB003201-LB009999
A183: Special Aspects of Education | B183: LC1-LC1098 | C183: LC000001-LC001098
A184: Multicultural Education | B184: LC1099 | C184: LC001099
A185: Education of Special Classes of Persons, General | B185: LC1100-LC2637 | C185: LC001100-LC002637
A186: Hispanic American Education | B186: LC2638-LC2698 | C186: LC002638-LC002698
A187: Afro-American Education | B187: LC2699-LC3000 | C187: LC002699-LC003000
A188: Education of Special Classes of Persons, Other Groups | B188: LC3001-LC3899 | C188: LC003001-LC003899
A189: Special Education | B189: LC3900-LC5160 | C189: LC003900-LC005160
A190: Education Extension, Adult Education, Continuing Education | B190: LC5161-LC9999 | C190: LC005161-LC009999
A191: Education: Individual Institutions: Uni | B191: LD | C191: LD
A192: Education: Institutions | B192: LE-LT | C192: LE-LT
A193: Visual Arts (General) | B193: N | C193: N
A194: Architecture | B194: NA | C194: NA
A195: Sculpture | B195: NB | C195: NB
A196: Graphic Arts (General), Drawing, Design | B196: NC | C196: NC
A197: Painting | B197: ND | C197: ND
A198: Print Media: Prinkmaking, Engraving, Li | B198: NE | C198: NE
A199: Decorative Arts, Applied Arts, Crafts | B199: NK | C199: NK
A200: Arts in General | B200: NX | C200: NX
... 371 more rows

Sheet Instructions
C3: Instructions
C5: Uploading Reports
C6: 1. From the Circulation Reports tab select the type of report you want to upload
C8: 2. Browse to the folder containing the unformated txt reports
C9: 3. The upload reports window will allow you to browse the reports that were in your folder. If you chose to upload in house reports, only those reports will be shown, the same applies for circulation reports.
C24: 4. When you are satified with the reports that will be uploaded select "Upload Reports"
C26: 5. Select the month for which you reports represent. Caution, after selecting ok, the process will start. Make sure you have selected the correct month as to not overwrite any data from previous months. Also, if for some reason there is already data in the month you want to select. Make sure to clear it out first, this process does not delete any existing data but simply will just add to it giving you incorrect numbers.
C44: 6. After selecting the month, sit back and watch! Hours of you time have been saved!
C48: Adding Mappings
C49: Because most of the call numbers are slightly different in the txt reports than what is used in the master report there was need for mappings.
C52: 1. On the mappings sheet find the section in which you want to add a mapping. Right click a row and select "Insert". Even if you just want to add a mapping at the end of a section it is important that you "insert" a row because of the use of "named ranges" (See "Adding a Section" for an explaination of named ranges.)
C57: 2. On the insterted row, fill in values for description, call number, full call number. Call number refers to the display name on the reshelving report, Full call number referst to the call number found in the txt reports (remove any spaces in the call number on the report).
C61: 3. Insert a row in to the coresponding section on the reshelving report sheet
C62: 4. Fill in information for the new mapping making sure to match the call number from the mappings sheet
C65: Adding Many to One Mappings
C66: In some cases you may want to aggregate more than one call number range into one mapping (ex: LRC). In this case you will need to create multiple mappings rows on the mappings sheet, all pointing to the same mapping (ex: LRC)
C71: Deleting Mappings
C72: 1. Deleting a mapping is as easy as deleting the row on the reshelving report.
C73: 2. It is not required to actually delete the mapping from the mappings sheet but is suggested.
C76: Adding Reports
C77: If you decide to add more reports it is important that they are set up correctly so the code behind this spread sheet can properly handle them.
C80: 1. Each report must have a title and subtitle for the first two lines
C92: In the above example, the first line is considerd the title and the second the subtitle. The title is used as the name of the report in the reports form durring an upload of reports.
C95: 2. For In-House reports it is critical that the report have the letters ih at the end of the subtitle. These letters are used by the code behind to filter In-House reports from circulation reports.
C98: 3. Add the report title to the report sections sheet. I wrote the code to remove the date from the end of the title so you will need to do so as well. This was done so you don’t have to redo the report sections sheet every month.
C102: 4. If there is not already a corresponding section for the new report, you will need to add a section to both the reshelving report sheet and the mappings sheet (see "Adding a Section")
C105: 5. Finally, you will need to add mappings for all the call numbers from the new report (see "Adding a Mapping"). This may be a bit tedious, but you will only have to do this once and the reports will be handled for you in future months.
C110: Adding a Section
C111: 1. If you have new reports that you want to have in their own section the first step is to add the reports to the report sections sheet (see "Adding a Report") and then setting the section for the new report to the name of the new section you will add.
C115: 2. If your new section were for example "LAW LIBRARY" you will now need to add the section to the reshelving report sheet and the mappings sheet. Once the sections have been added, you will need to include any of the mappings in the two sheets in a named range.
C119: 3. To create a named range, simply select the cells your mappings are in and type the new name for the section in the "Name Box".
C121: 4. If the name of my new section were law library, the named range for the mappings page should be "M_LAW_LIBRARY". For the reshelving report sheet, the range would be named "R_LAW_LIBRARY" See the two screen shots to the right for examples.
C126: Starting a New Year
C127: 1. Simply change the years at the top of the reshelving report and delete the old data from the rows for each of the months (do not delete the column headings for the months.
C131: Trouble Shooting
C132: 1. I get a message at the end of the upload telling me that I am missing mappings, I have the mappings. What should I do?
C134: Double check for typos. If it doesn appear that there are any typos check for blank spaces at the end of a call number in either the mappings sheet or the report sections sheet. To do this select the cell and hit F2. If there are any blank spaces you will quickly be able to see them. Removing them will probably resolve your issues. If this still doesn't resolve your issues, double check that the corresponding named regions for all the mappings have not been messed up.
C142: 2. One of my named regions is messed up. The name is wrong or more cells need to be included. How do I fix this?
C144: You can view all named regions and edit them by holding down ctrl + F3
